bitfinex/quotes_SOLUSD_20250617
["timestamp","ask_amount","ask_price","bid_price","bid_amount"]
[1750119275124,14.57083813,148.95,148.9,67.79083813]
[1750119275125,14.57083813,148.94,148.87,14.57083813]
[1750119275330,14.57083813,148.9,148.85,24.79083813]
[1750119275538,48.61083813,148.89,148.85,10.22]
[1750119275821,26.0,148.92,148.85,10.22]
[1750119275822,48.61083813,148.88,148.85,10.22]
[1750119275993,34.04,148.88,148.85,10.22]
[1750119276191,14.57083813,148.89,148.85,10.22]
[1750119276192,34.04,148.89,148.87,14.57083813]
[1750119276419,14.57083813,148.91,148.85,10.22]
[1750119276615,6.71185985,148.99,148.9,14.57083813]
[1750119276918,21.2808965,149.03,148.97,14.57083813]
[1750119277097,21.2808965,149.03,148.9,0.42648471]
[1750119277098,14.57083813,149.01,148.9,6.60438471]
[1750119277302,14.57083813,149.01,148.96,14.57083813]
[1750119277495,14.57083813,149.01,148.85,20.22]
[1750119277496,14.57083813,148.97,148.85,27.014903]
[1750119277694,14.57083813,148.94,148.89,14.57083813]
[1750119278198,14.57083813,148.91,148.86,14.57083813]
[1750119278422,34.04,148.91,148.87,14.57083813]
[1750119278635,26.0,148.96,148.88,14.57083813]
[1750119278928,14.57083813,149.0,148.95,14.57083813]
[1750119279115,10.22,149.07,148.97,14.57083813]
[1750119279116,14.57083813,149.02,148.97,14.57083813]
[1750119279317,14.57083813,148.99,148.94,14.57083813]
[1750119279506,60.02,149.01,148.68,22.32284997]
[1750119279507,40.57083813,148.95,148.84,6.71862402]
[1750119279709,14.57083813,148.9,148.85,24.79083813]
[1750119280036,48.59083813,148.89,148.85,10.22]
[1750119280232,14.57083813,148.87,148.81,14.57083813]
[1750119280443,26.0,148.86,148.79,14.57083813]
[1750119280730,21.28946215,148.84,148.79,14.57083813]
[1750119280923,34.02,148.83,148.81,14.57083813]
[1750119281112,34.02,148.83,148.8,14.57083813]
[1750119281430,34.02,148.83,148.81,14.57083813]
[1750119281931,6.71411306,148.94,148.82,14.57083813]
[1750119282136,14.57083813,148.94,148.89,14.57083813]
[1750119282366,18.64964886,149.02,148.93,14.57083813]
[1750119282543,55.3021949,149.01,148.95,14.57083813]
[1750119282739,34.02,149.0,148.96,14.57083813]
[1750119282959,34.02,149.0,148.94,14.57083813]
[1750119282960,74.59083813,149.0,148.94,14.57083813]
[1750119283248,74.59083813,149.0,148.87,27.21724713]
[1750119283249,14.57083813,148.95,148.87,10.14]
[1750119283456,52.66964886,149.0,148.92,14.57083813]
[1750119283457,18.64964886,149.0,148.92,14.57083813]
[1750119283636,14.57083813,148.98,148.93,14.57083813]
[1750119283936,34.02,148.99,148.85,0.14216157]
[1750119283937,40.57083813,148.96,148.91,14.57083813]
[1750119284138,40.57083813,148.96,148.83,10.14]
[1750119284139,14.57083813,148.95,148.9,14.57083813]
[1750119284434,34.02,148.94,148.91,14.57083813]
[1750119284635,34.02,148.94,148.92,14.57083813]
[1750119285260,34.02,148.94,148.93,14.57083813]
[1750119285413,34.02,148.94,148.91,14.57083813]
[1750119285751,26.0,148.89,148.79,16.86088177]
[1750119286041,34.0,148.88,148.85,14.57083813]
[1750119286245,34.0,148.88,148.86,14.57083813]
[1750119286447,34.0,148.88,148.81,0.42648471]
[1750119286628,34.0,148.88,148.86,14.57083813]
[1750119286833,34.0,148.88,148.84,14.57083813]
[1750119287225,14.57083813,148.87,148.79,16.86079991]
[1750119287428,40.71698771,148.88,148.83,14.57083813]
[1750119287429,34.0,148.88,148.83,14.57083813]
[1750119287624,34.0,148.88,148.84,14.57083813]
[1750119288049,6.1383,148.96,148.79,33.66300435]
[1750119288050,6.7136623,148.95,148.87,14.57083813]
[1750119288249,14.57083813,148.9,148.79,33.66300435]
[1750119288418,14.57083813,148.87,148.79,16.86079991]
[1750119288621,34.0,148.86,148.82,14.57083813]
[1750119288849,55.28859394,148.86,148.8,6.72032312]
[1750119289048,14.57083813,148.85,148.8,14.57083813]
[1750119289548,34.0,148.86,148.83,14.57083813]
[1750119289730,34.0,148.86,148.82,14.57083813]
[1750119289932,34.0,148.86,148.84,14.57083813]
[1750119290346,44.64964886,148.96,148.85,14.57083813]
[1750119290525,6.71591672,148.9,148.86,14.57083813]
[1750119290850,34.0,148.89,148.81,6.71997849]
[1750119291038,34.0,148.89,148.85,14.57083813]
[1750119291435,34.0,148.89,148.81,6.71997849]
[1750119291436,34.0,148.89,148.86,14.57083813]
[1750119291652,60.0,148.89,148.79,10.14]
[1750119291833,14.57083813,148.83,148.79,10.14]
[1750119292033,48.57083813,148.82,148.79,10.14]
[1750119292237,14.57083813,148.8,148.75,14.57083813]
[1750119292440,14.57083813,148.8,148.72,18.53264937]
[1750119292441,14.57083813,148.78,148.73,14.57083813]
[1750119292765,34.0,148.82,148.73,14.57083813]
[1750119292766,34.0,148.77,148.75,14.57083813]
[1750119293061,16.79893125,148.82,148.76,14.57083813]
[1750119293062,34.0,148.82,148.76,14.57083813]
[1750119293250,34.0,148.82,148.79,14.57083813]
[1750119293752,34.0,148.82,148.78,14.57083813]
[1750119293957,14.57083813,148.8,148.73,6.7235275]
[1750119294158,14.57083813,148.8,148.75,14.57083813]
[1750119294337,14.57083813,148.76,148.72,10.16]
[1750119294523,6.72359308,148.73,148.67,6.72620513]
[1750119294727,14.57083813,148.73,148.68,14.57083813]
[1750119295031,6.72323071,148.74,148.68,14.57083813]
[1750119295353,33.98,148.77,148.73,14.57083813]
[1750119295653,26.0,148.73,148.65,10.16]
[1750119295832,14.57083813,148.7,148.65,24.73083813]
[1750119296034,34.0,148.69,148.65,24.73083813]
[1750119296251,34.0,148.69,148.66,14.57083813]
[1750119297148,34.0,148.69,148.65,24.73083813]
[1750119297149,40.72542807,148.69,148.65,24.73083813]
[1750119297326,14.57083813,148.68,148.65,10.16]
[1750119297528,14.57083813,148.67,148.62,14.57083813]
[1750119297722,14.57083813,148.66,148.61,14.57083813]
[1750119298145,14.57083813,148.67,148.62,14.57083813]
[1750119298548,6.72268907,148.75,148.67,6.72630658]
[1750119298732,40.57083813,148.74,148.69,14.57083813]
[1750119298929,34.0,148.73,148.71,14.57083813]
[1750119299137,6.71997849,148.81,148.72,14.57083813]
[1750119299347,14.57083813,148.81,148.76,14.57083813]
[1750119299753,34.0,148.8,148.76,14.57083813]
[1750119300359,6.71681891,148.88,148.73,0.28432314]
[1750119300543,23.51676408,148.83,148.67,33.70207304]
[1750119300742,14.57083813,148.74,148.69,14.57083813]
[1750119301041,26.0,148.79,148.64,14.57083813]
[1750119301042,40.57083813,148.7,148.64,14.57083813]
[1750119301259,14.57083813,148.65,148.6,24.73083813]
[1750119301463,14.57083813,148.63,148.6,10.16]
[1750119301770,26.0,148.58,148.49,16.89408937]
[1750119301959,14.57083813,148.53,148.49,10.16]
[1750119302161,18.64964886,148.62,148.41,16.8980327]
[1750119302162,26.0,148.48,148.41,16.8980327]
[1750119302368,26.0,148.46,148.4,28.07083813]
[1750119302551,18.64964886,148.58,148.4,28.07083813]
[1750119302552,34.0,148.45,148.4,13.5]
[1750119302755,34.0,148.44,148.4,13.5]
[1750119302947,40.57083813,148.41,148.4,13.5]
[1750119303152,34.0,148.44,148.4,13.5]
[1750119303458,33.98,148.43,148.4,13.5]
[1750119303661,33.98,148.42,148.4,13.5]
[1750119303862,14.57083813,148.41,148.4,13.5]
[1750119304176,33.98,148.42,148.4,13.5]
[1750119304386,32.73491379,148.48,148.41,14.57083813]
[1750119304584,33.98,148.47,148.42,0.08526371]
[1750119304741,14.57083813,148.46,148.4,20.23853045]
[1750119304944,0.42648471,148.5,148.4,20.23853045]
[1750119304945,16.82732879,148.57,148.4,37.08489163]
[1750119305179,14.57083813,148.51,148.4,37.08489163]
[1750119305359,34.0,148.5,148.46,14.57083813]
[1750119305681,18.64964886,148.58,148.49,14.57083813]
[1750119305970,48.57083813,148.57,148.48,10.16]
[1750119306172,6.72768409,148.64,148.48,10.16]
[1750119306380,34.0,148.63,148.48,10.16]
[1750119306545,6.72585418,148.68,148.49,23.57061081]
[1750119306751,34.0,148.67,148.5,0.28432314]
[1750119306972,34.0,148.67,148.49,57.24291197]
[1750119307173,14.57083813,148.61,148.55,14.57083813]
[1750119307391,14.57083813,148.61,148.49,57.24291197]
[1750119307392,34.0,148.6,148.54,14.57083813]
[1750119307696,34.0,148.59,148.56,14.57083813]
[1750119307849,34.02,148.59,148.57,14.57083813]
[1750119308047,6.72585418,148.68,148.58,14.57083813]
[1750119308246,6.72585418,148.68,148.56,14.57083813]
[1750119308494,34.02,148.67,148.49,23.57061081]
[1750119308711,26.0,148.63,148.5,0.14216157]
[1750119308908,6.72675904,148.66,148.5,0.14216157]
[1750119308909,26.0,148.62,148.55,14.57083813]
[1750119309068,40.57083813,148.58,148.49,6.73446023]
[1750119309274,14.57083813,148.54,148.48,10.16]
[1750119309495,34.0,148.56,148.48,16.89481763]
[1750119309691,14.57083813,148.53,148.42,10.16]
[1750119310096,34.0,148.56,148.5,14.57083813]
[1750119310396,34.0,148.58,148.48,0.28432314]
[1750119310693,14.57083813,148.51,148.43,10.16]
[1750119310909,48.59083813,148.51,148.46,14.57083813]
[1750119311075,14.57083813,148.49,148.44,14.57083813]
[1750119311275,14.57083813,148.48,148.43,10.16]
[1750119311498,60.02,148.51,148.43,10.16]
[1750119311499,14.57083813,148.47,148.43,10.16]
[1750119311673,60.02,148.51,148.45,14.57083813]
[1750119311874,74.59083813,148.51,148.46,14.57083813]
[1750119312091,34.02,148.51,148.48,14.57083813]
[1750119312292,34.02,148.51,148.46,14.57083813]
[1750119312469,34.02,148.51,148.43,10.16]
[1750119312683,14.57083813,148.49,148.43,24.73083813]
[1750119312907,14.57083813,148.44,148.4,13.5]
[1750119313213,14.57083813,148.46,148.4,34.80930339]
[1750119313513,34.02,148.45,148.42,14.57083813]
[1750119313716,34.02,148.45,148.44,14.57083813]
[1750119313922,16.830487,148.54,148.44,14.57083813]
[1750119313923,34.02,148.49,148.44,14.57083813]
[1750119314216,14.57083813,148.48,148.4,20.23846526]
[1750119314389,18.64964886,148.59,148.47,14.57083813]
[1750119314586,14.57083813,148.52,148.47,14.57083813]
[1750119314788,48.59083813,148.51,148.46,14.57083813]
[1750119314995,14.57083813,148.49,148.4,13.5]
[1750119315319,48.59083813,148.51,148.46,14.57083813]
[1750119315519,34.02,148.51,148.42,0.28432314]
[1750119315694,34.02,148.51,148.47,14.57083813]
[1750119315898,14.57083813,148.49,148.44,14.57083813]
[1750119316096,60.02,148.51,148.4,13.5]
[1750119316097,18.79181043,148.44,148.4,13.5]
[1750119316301,59.36264856,148.41,148.4,13.5]
[1750119316499,26.0,148.37,148.36,5.25419275]
[1750119316687,26.0,148.37,148.36,4.60021079]
[1750119316688,100.40687868,148.37,148.36,4.60021079]
[1750119316888,100.40687868,148.37,148.36,3.94622883]
[1750119317110,26.0,148.34,148.18,1.5289]
[1750119317290,59.36264856,148.34,148.22,14.57083813]
[1750119317491,59.36264856,148.34,148.18,1.5289]
[1750119317492,26.0,148.3,148.18,1.5289]
[1750119317707,23.58967445,148.37,148.18,1.5289]
[1750119317889,23.58967445,148.37,148.09,53.34]
[1750119317890,14.57083813,148.23,148.09,53.34]
[1750119318092,14.57083813,148.23,148.02,13.87250167]
[1750119318093,0.42648471,148.18,148.02,10.12]
[1750119318304,26.0,148.19,148.07,14.57083813]
[1750119318618,14.57083813,148.14,148.01,10.0]
[1750119318821,34.04,148.13,148.09,14.57083813]
[1750119319020,34.04,148.13,148.12,14.57083813]
[1750119319021,34.02,148.13,148.12,14.57083813]
[1750119319208,14.57083813,148.19,148.04,10.0]
[1750119319409,14.57083813,148.15,148.05,10.12]
[1750119319597,34.04,148.18,148.05,10.12]
[1750119319955,14.57083813,148.14,148.09,14.57083813]
[1750119320121,26.0,148.15,148.03,1.3990358]
[1750119320308,14.57083813,148.07,148.03,1.3990358]
[1750119320512,34.28,148.06,148.03,1.3990358]
[1750119320695,34.28,148.06,148.04,14.57083813]
[1750119320897,34.28,148.06,148.05,14.57083813]
[1750119321112,34.28,148.06,148.03,1.3990358]
[1750119321315,14.57083813,148.04,148.03,1.3990358]
[1750119322208,26.0,148.05,148.03,1.3990358]
[1750119322391,34.26,148.04,148.03,1.3990358]
[1750119322593,81.58576922,148.04,148.03,1.3990358]
[1750119322903,55.72793079,148.04,147.9,1.6232]
[1750119323102,55.72793079,148.04,147.68,14.57083813]
[1750119323103,14.57083813,147.91,147.76,10.12]
[1750119323352,14.57083813,147.86,147.78,14.75083813]
[1750119323498,14.57083813,147.86,147.78,0.18]
[1750119324105,59.36264856,147.86,147.78,0.18]
[1750119324306,14.57083813,147.86,147.78,0.18]
[1750119324602,14.57083813,147.86,147.78,14.75083813]
[1750119324603,67.10315433,147.86,147.78,14.75083813]
[1750119324928,81.67399246,147.86,147.78,0.18]
[1750119325123,112.73145548,147.86,147.78,0.18]
[1750119325325,135.41836901,147.86,147.78,0.18]
[1750119325505,40.57083813,147.79,147.78,0.18]
[1750119325707,48.95083813,147.79,147.78,0.18]
[1750119326414,49.0929997,147.79,147.78,0.18]
[1750119326626,48.95083813,147.79,147.78,0.18]
[1750119326944,55.71719579,147.79,147.78,0.18]
[1750119327305,41.14635766,147.79,147.78,0.18]
[1750119327629,41.10635766,147.79,147.78,0.18]
[1750119327930,81.71719579,147.79,147.78,0.18]
[1750119328108,55.71719579,147.79,147.78,0.18]
[1750119329212,41.14635766,147.79,147.78,0.18]
[1750119329535,74.50900622,147.79,147.78,0.18]
[1750119329705,41.14635766,147.79,147.78,0.18]
[1750119330026,55.71719579,147.79,147.78,0.18]
[1750119330208,55.85935736,147.79,147.78,0.18]
[1750119330411,55.71719579,147.79,147.78,0.18]
[1750119330619,74.36684465,147.79,147.74,1.3990358]
[1750119330817,21.33902763,147.75,147.74,1.3990358]
[1750119331134,55.8811892,147.75,147.74,1.3990358]
[1750119331338,26.0,147.71,147.6,26.22043609]
[1750119331547,14.57083813,147.64,147.6,5.39619796]
[1750119331835,48.99083813,147.63,147.6,5.39619796]
[1750119332040,34.42,147.63,147.6,19.96703609]
[1750119332241,17.53610756,147.73,147.6,19.96703609]
[1750119332242,34.4,147.66,147.61,18.64964886]
[1750119332429,17.53610756,147.73,147.66,18.933972]
[1750119332637,17.53610756,147.73,147.72,14.57083813]
[1750119332809,6.76752111,147.77,147.72,14.57083813]
[1750119333006,16.91227791,147.83,147.69,0.28432314]
[1750119333007,6.76498444,147.82,147.77,18.933972]
[1750119333208,38.24828367,147.82,147.71,19.07613357]
[1750119333413,34.4,147.81,147.77,14.57083813]
[1750119333738,34.4,147.81,147.78,14.57083813]
[1750119334107,34.4,147.81,147.77,14.57083813]
[1750119334355,6.76498444,147.82,147.74,0.28432314]
[1750119334511,6.76498444,147.82,147.81,14.57083813]
[1750119334709,6.76361176,147.85,147.81,14.57083813]
[1750119335007,6.76361176,147.85,147.77,18.933972]
[1750119335008,58.03264118,147.85,147.77,18.933972]
[1750119335151,58.03264118,147.85,147.79,14.57083813]
[1750119335440,58.03264118,147.85,147.8,14.57083813]
[1750119335441,34.34,147.84,147.8,14.57083813]
[1750119335650,34.34,147.84,147.83,14.57083813]
[1750119335823,6.76361176,147.85,147.83,14.57083813]
[1750119336023,16.90098639,147.93,147.85,18.64964886]
[1750119336246,6.75904021,147.95,147.87,18.64964886]
[1750119336419,6.75904021,147.95,147.94,14.57083813]
[1750119336617,9.24572423,148.1,147.94,14.57083813]
[1750119336820,14.57083813,148.03,147.98,14.57083813]
[1750119337042,48.87083813,148.02,147.95,18.64964886]
[1750119337352,14.57083813,147.96,147.89,0.14216157]
[1750119337548,14.57083813,147.96,147.86,0.14216157]
[1750119337549,14.57083813,147.93,147.86,0.14216157]
[1750119337723,14.57083813,147.9,147.86,18.933972]
[1750119338053,48.87083813,147.9,147.85,20.57863813]
[1750119338259,48.87083813,147.9,147.85,14.57083813]
[1750119338552,48.87083813,147.9,147.83,10.16]
[1750119338553,100.21206686,148.09,147.91,0.28432314]
[1750119338728,34.28,148.08,147.94,0.42648471]
[1750119338933,34.28,148.08,147.97,14.57083813]
[1750119339236,34.28,148.08,147.93,18.64964886]
[1750119339237,14.57083813,147.98,147.93,14.57083813]
[1750119339437,34.3,147.97,147.89,14.57083813]
[1750119339743,48.87083813,148.0,147.92,0.28432314]
[1750119339944,48.87083813,148.0,147.95,14.57083813]
[1750119340322,100.21206686,148.09,147.97,14.57083813]
[1750119340522,14.57083813,148.03,147.92,19.07613357]
[1750119340846,6.75533732,148.04,148.01,14.57083813]
[1750119341154,14.57083813,148.02,147.97,14.57083813]
[1750119341346,6.75533732,148.04,147.98,14.57083813]
[1750119341558,76.57779042,148.09,148.03,14.57083813]
[1750119341559,9.05128628,148.09,148.03,14.57083813]
[1750119341846,14.57083813,148.18,148.08,14.57083813]
[1750119342038,14.57083813,148.14,148.05,19.07613357]
[1750119342349,6.74672783,148.22,148.13,14.57083813]
[1750119342530,6.74672783,148.22,148.07,0.28432314]
[1750119342531,14.57083813,148.17,148.07,0.28432314]
[1750119342843,9.68050298,148.23,148.09,0.42648471]
[1750119342844,6.74946004,148.16,148.09,0.42648471]
[1750119343142,6.74946004,148.16,148.05,10.22]
[1750119343143,34.7,148.15,148.05,10.22]
[1750119343346,14.57083813,148.1,148.05,10.22]
[1750119343531,34.68,148.09,148.05,10.22]
[1750119343738,14.57083813,148.08,148.05,10.22]
[1750119343934,34.68,148.09,148.02,14.57083813]
[1750119344136,14.57083813,148.05,147.97,10.22]
[1750119344328,26.0,148.06,147.94,6.6213]
[1750119344529,14.57083813,148.01,147.95,14.57083813]
[1750119344727,14.57083813,147.99,147.94,14.57083813]
[1750119344927,34.64,148.0,147.9,10.22]
[1750119345127,14.57083813,147.95,147.9,10.22]
[1750119345423,60.64,148.0,147.9,10.22]
[1750119345424,14.57083813,147.97,147.9,10.22]
[1750119345724,14.57083813,147.98,147.92,14.57083813]
[1750119345934,14.57083813,147.95,147.9,10.22]
[1750119346137,34.62,147.94,147.9,24.79083813]
[1750119346341,34.62,147.94,147.92,14.57083813]
[1750119346755,34.62,147.94,147.93,14.57083813]
[1750119346951,34.62,147.94,147.92,14.57083813]
[1750119347137,14.57083813,148.0,147.93,14.57083813]
[1750119347469,33.76354951,148.09,147.9,35.63071785]
[1750119347470,10.22,148.17,148.0,18.64964886]
[1750119347766,14.57083813,148.14,148.09,14.57083813]
[1750119347931,34.66,148.13,148.02,0.28432314]
[1750119348138,14.57083813,148.1,148.05,14.57083813]
[1750119348336,49.21083813,148.09,148.02,0.14216157]
[1750119348533,34.68,148.08,148.04,14.57083813]
[1750119348765,34.66,148.08,148.06,14.57083813]
[1750119349060,6.74944931,148.17,148.08,18.933972]
[1750119349264,21.31939398,148.18,148.13,14.57083813]
[1750119349440,21.31939398,148.18,148.08,18.933972]
[1750119349441,34.64,148.19,148.16,14.57083813]
[1750119349650,14.57083813,148.17,148.11,10.22]
[1750119349949,6.74798302,148.2,148.13,14.57083813]
[1750119349950,34.62,148.16,148.13,14.57083813]
[1750119350137,34.62,148.16,148.14,14.57083813]
[1750119350457,10.0,148.3,148.11,10.22]
[1750119350458,34.68,148.21,148.15,14.57083813]
[1750119350757,14.57083813,148.16,148.11,10.22]
[1750119350959,34.68,148.15,148.04,19.07613357]
[1750119351129,14.57083813,148.12,148.04,18.79181043]
[1750119351332,14.57083813,148.11,148.06,14.57083813]
[1750119351648,14.57083813,148.1,148.05,14.57083813]
[1750119351957,49.21083813,148.09,148.04,14.57083813]
[1750119352339,14.57083813,148.08,148.03,24.79083813]
[1750119352530,26.0,148.14,148.03,10.22]
[1750119352735,14.57083813,148.11,148.06,14.57083813]
[1750119352942,34.6,148.1,148.07,14.57083813]
[1750119353240,34.6,148.15,148.09,14.57083813]
[1750119353441,34.6,148.15,148.11,14.57083813]
[1750119353648,34.58,148.15,148.07,0.14216157]
[1750119353852,6.74399784,148.28,148.14,14.57083813]
[1750119354060,6.74399784,148.28,148.16,0.14216157]
[1750119354248,34.56,148.27,148.2,14.57083813]
[1750119354445,14.57083813,148.25,148.2,14.57083813]
[1750119354644,21.31802725,148.21,148.15,14.57083813]
[1750119354872,34.58,148.2,148.15,14.57083813]
[1750119355172,49.15083813,148.2,148.15,14.57083813]
[1750119355342,34.58,148.2,148.17,14.57083813]
[1750119355547,14.57083813,148.18,148.1,13.04482679]
[1750119355750,34.58,148.2,148.17,14.57083813]
[1750119356058,34.58,148.2,148.14,29.153972]
[1750119356255,33.7094143,148.33,148.19,14.57083813]
[1750119356459,6.74217907,148.32,148.26,14.57083813]
[1750119356652,34.5,148.31,148.28,14.57083813]
[1750119356849,6.74217907,148.32,148.28,14.57083813]
[1750119357155,34.48,148.31,148.23,10.22]
[1750119357341,6.1982,148.44,148.3,14.57083813]
[1750119357342,16.84673948,148.4,148.3,14.57083813]
[1750119357548,14.57083813,148.37,148.32,14.57083813]
[1750119357749,21.30983671,148.39,148.34,14.57083813]
[1750119357951,6.73899858,148.39,148.36,14.57083813]
[1750119358161,54.9190358,148.48,148.38,14.57083813]
[1750119358162,6.73582109,148.46,148.38,14.57083813]
[1750119358472,14.57083813,148.45,148.4,14.57083813]
[1750119358663,6.73809042,148.41,148.37,14.57083813]
[1750119358868,6.73627484,148.45,148.4,14.57083813]
[1750119359066,21.30711297,148.45,148.4,14.57083813]
[1750119359374,14.57083813,148.45,148.4,14.57083813]
[1750119359577,1.3990358,148.48,148.39,26.0]
[1750119359751,1.3990358,148.48,148.4,19.07613357]
[1750119359951,1.3990358,148.48,148.47,14.57083813]
[1750119360380,1.3990358,148.48,148.47,33.50481013]
[1750119360549,1.3990358,148.48,148.45,26.0]
[1750119360550,1.3990358,148.48,148.45,18.933972]
[1750119360750,1.3990358,148.48,148.4,18.933972]
[1750119360967,14.57083813,148.44,148.4,18.933972]
[1750119361196,14.57083813,148.41,148.34,18.64964886]
[1750119361376,73.216811,148.48,148.37,14.57083813]
[1750119361377,34.4,148.4,148.37,14.57083813]
[1750119361584,34.4,148.4,148.27,10.0]
[1750119361585,14.57083813,148.38,148.26,16.4762]
[1750119361897,14.57083813,148.34,148.26,10.22]
[1750119362194,0.14216157,148.41,148.26,10.22]
[1750119362366,0.14216157,148.43,148.26,10.22]
[1750119362568,14.57083813,148.38,148.26,10.22]
[1750119362867,0.28432314,148.45,148.26,10.22]
[1750119362868,0.14216157,148.46,148.37,16.73836981]
[1750119363096,16.73836981,148.46,148.41,16.73836981]
[1750119363405,1.3990358,148.48,148.45,16.73836981]
[1750119363565,1.3990358,148.48,148.44,10.2]
[1750119363763,40.36055427,148.66,148.5,26.0]
[1750119363988,40.36055427,148.66,148.52,16.73836981]
[1750119364268,34.42,148.65,148.52,26.0]
[1750119364565,16.73836981,148.62,148.56,16.73836981]
[1750119364783,16.73836981,148.59,148.49,26.0]
[1750119364974,6.72902227,148.61,148.54,16.73836981]
[1750119365176,16.73836981,148.57,148.52,16.73836981]
[1750119365605,23.55157795,148.61,148.53,16.73836981]
[1750119365765,6.72766415,148.64,148.58,16.73836981]
[1750119365969,6.72766415,148.64,148.49,10.2]
[1750119366170,34.42,148.66,148.58,16.73836981]
[1750119366386,16.81474798,148.68,148.59,16.73836981]
[1750119366687,16.73836981,148.64,148.58,16.73836981]
[1750119366863,6.72404518,148.72,148.63,16.73836981]
[1750119367066,16.73836981,148.68,148.59,10.2]
[1750119367262,26.0,148.69,148.56,10.2]
[1750119367467,16.73836981,148.62,148.56,10.2]
[1750119367668,23.53415814,148.72,148.56,10.2]
[1750119367669,34.44,148.64,148.61,16.73836981]
[1750119367891,34.44,148.64,148.58,0.14216157]
[1750119368075,23.46241499,148.72,148.64,18.64964886]
[1750119368284,6.72404518,148.72,148.67,16.73836981]
[1750119368592,16.73836981,148.7,148.58,18.64964886]
[1750119368796,26.0,148.72,148.65,16.73836981]
[1750119369001,51.18898272,148.73,148.6,18.64964886]
[1750119369002,34.38,148.73,148.69,16.73836981]
[1750119369182,41.10268907,148.75,148.64,19.07613357]
[1750119369383,16.73836981,148.76,148.64,18.933972]
[1750119369384,6.72227546,148.76,148.64,18.933972]
[1750119369696,51.09836981,148.75,148.64,18.64964886]
[1750119369895,1.3990358,148.77,148.64,18.64964886]
[1750119369896,8.12083418,148.77,148.73,16.73836981]
[1750119370113,1.3990358,148.77,148.76,16.73836981]
[1750119370486,1.3990358,148.77,148.76,35.38801867]
[1750119370717,1.3990358,148.77,148.72,19.07613357]
[1750119370879,1.3990358,148.77,148.76,16.73836981]
[1750119371598,6.71501477,148.92,148.77,18.64964886]
[1750119371919,6.71501477,148.92,148.79,18.64964886]
[1750119372082,6.71501477,148.92,148.85,16.73836981]
[1750119372287,6.71501477,148.92,148.84,16.73836981]
[1750119372491,16.73836981,148.88,148.79,18.64964886]
[1750119372798,23.5025517,148.92,148.78,26.0]
[1750119372799,16.73836981,148.91,148.81,18.64964886]
[1750119373012,16.73836981,148.91,148.86,16.73836981]
[1750119373190,16.73836981,148.88,148.8,10.28]
[1750119373395,16.73836981,148.87,148.82,16.73836981]
[1750119373585,16.73836981,148.87,148.8,10.28]
[1750119373586,16.73836981,148.85,148.8,10.28]
[1750119373783,16.73836981,148.85,148.8,27.01836981]
[1750119373981,26.42648471,148.9,148.8,27.01836981]
[1750119373982,26.0,148.9,148.83,16.73836981]
[1750119374185,16.73836981,148.9,148.85,16.73836981]
[1750119374403,16.73836981,148.86,148.81,16.73836981]
[1750119374627,26.0,148.88,148.73,16.8079724]
[1750119374777,26.0,148.88,148.72,10.0]
[1750119374778,32.71716111,148.88,148.82,16.73836981]
[1750119374977,16.73836981,148.89,148.78,32.72133351]
[1750119375194,23.45361438,148.92,148.81,26.0]
[1750119375384,57.7129665,148.93,148.82,44.64964886]
[1750119375585,23.6329665,148.93,148.82,44.64964886]
[1750119375787,16.73836981,148.92,148.82,18.64964886]
[1750119376022,40.95459669,148.93,148.82,28.92964886]
[1750119376023,16.73836981,148.89,148.82,28.92964886]
[1750119376183,16.73836981,148.9,148.85,16.73836981]
[1750119376609,16.73836981,148.91,148.86,16.73836981]
[1750119376793,34.24,148.93,148.87,16.73836981]
[1750119377116,34.24,148.93,148.82,28.92964886]
[1750119377117,16.73836981,148.92,148.83,18.64964886]
[1750119377685,0.18,148.93,148.83,25.36872431]
[1750119377887,0.18,148.93,148.89,16.73836981]
[1750119378082,16.73836981,148.92,148.83,25.36872431]
[1750119378287,0.18,148.93,148.83,25.36872431]
[1750119378810,0.18,148.93,148.86,18.64964886]
[1750119378989,0.18,148.93,148.89,16.73836981]
[1750119379192,0.18,148.93,148.9,16.73836981]
[1750119379399,0.18,148.93,148.89,16.73836981]
[1750119379815,16.91836981,148.93,148.89,16.73836981]
[1750119379993,6.89458497,148.93,148.86,18.64964886]